[Event "January 9 Early 2024"]
[Site "https://www.chess.com"]
[Date "2024.01.11"]
[Round "3"]
[White "Kraus, Tomas"]
[Black "Petersson, Kjell"]
[Result "0-1"]
[Board "132"]
[TimeControl "180+1"]
[WhiteFideId "331708"]
[BlackFideId "1705148"]
[WhiteElo "2355"]
[BlackElo "2135"]
[WhiteTeam "CZE"]
[BlackTeam "SWE"]
[WhiteClock "0:00:06"]
[BlackClock "0:00:56"]

1. e4 {[%clk 0:02:58]}  c5 {[%clk 0:02:59]} 2. Nc3 {[%clk 0:02:57]}  g6 {[%clk 0:02:58]} 3. f4 {[%clk 0:02:56]}  Bg7 {[%clk 0:02:58]} 4. Nf3 {[%clk 0:02:57]}  Nc6 {[%clk 0:02:58]} 5. Bb5 {[%clk 0:02:57]}  e6 {[%clk 0:02:54]} 6. Bxc6 {[%clk 0:02:54]}  bxc6 {[%clk 0:02:53]} 7. e5 {[%clk 0:02:55]}  d6 {[%clk 0:02:51]} 8. exd6 {[%clk 0:02:51]}  Qxd6 {[%clk 0:02:51]} 9. d3 {[%clk 0:02:40]}  Nf6 {[%clk 0:02:46]} 10. O-O {[%clk 0:02:39]}  O-O {[%clk 0:02:46]} 11. Ne4 {[%clk 0:02:01]}  Nxe4 {[%clk 0:02:44]} 12. dxe4 {[%clk 0:02:00]}  Rd8 {[%clk 0:02:43]} 13. Qxd6 {[%clk 0:01:40]}  Rxd6 {[%clk 0:02:43]} 14. e5 {[%clk 0:01:41]}  Rd5 {[%clk 0:02:33]} 15. Be3 {[%clk 0:01:32]}  Ba6 {[%clk 0:02:31]} 16. Rfd1 {[%clk 0:01:28]}  Rad8 {[%clk 0:02:32]} 17. Rd2 {[%clk 0:01:07]}  Rxd2 {[%clk 0:02:24]} 18. Nxd2 {[%clk 0:00:51]}  Bf8 {[%clk 0:02:20]} 19. Ne4 {[%clk 0:00:48]}  Rd5 {[%clk 0:02:18]} 20. Nf6+ {[%clk 0:00:48]}  Kg7 {[%clk 0:02:18]} 21. Nxd5 {[%clk 0:00:49]}  cxd5 {[%clk 0:02:19]} 22. c3 {[%clk 0:00:49]}  Bc4 {[%clk 0:01:59]} 23. b3 {[%clk 0:00:45]}  Bd3 {[%clk 0:01:56]} 24. b4 {[%clk 0:00:33]}  cxb4 {[%clk 0:01:54]} 25. cxb4 {[%clk 0:00:33]}  Bxb4 {[%clk 0:01:52]} 26. Bxa7 {[%clk 0:00:32]}  Bc3 {[%clk 0:01:47]} 27. Rc1 {[%clk 0:00:32]}  Bb2 {[%clk 0:01:30]} 28. Rd1 {[%clk 0:00:25]}  Bc4 {[%clk 0:01:28]} 29. a4 {[%clk 0:00:23]}  Kf8 {[%clk 0:01:26]} 30. a5 {[%clk 0:00:21]}  Ke8 {[%clk 0:01:26]} 31. Rb1 {[%clk 0:00:19]}  Bc3 {[%clk 0:01:22]} 32. Rb7 {[%clk 0:00:19]}  Bxa5 {[%clk 0:01:20]} 33. Bc5 {[%clk 0:00:18]}  Bd3 {[%clk 0:01:13]} 34. Re7+ {[%clk 0:00:17]}  Kd8 {[%clk 0:01:12]} 35. Rxf7 {[%clk 0:00:17]}  h5 {[%clk 0:01:13]} 36. Kf2 {[%clk 0:00:15]}  Bf5 {[%clk 0:01:07]} 37. h3 {[%clk 0:00:15]}  Ke8 {[%clk 0:01:04]} 38. Re7+ {[%clk 0:00:13]}  Kd8 {[%clk 0:01:04]} 39. Kf3 {[%clk 0:00:14]}  Be4+ {[%clk 0:01:02]} 40. Kf2 {[%clk 0:00:13]}  Bb6 {[%clk 0:00:59]} 41. Rxe6 {[%clk 0:00:08]}  Bxc5+ {[%clk 0:00:59]} 42. Kf1 {[%clk 0:00:08]}  Bf5 {[%clk 0:00:56]} 43. Ra6 {[%clk 0:00:08]}  Bd3+ {[%clk 0:00:56]} 44. Ke1 {[%clk 0:00:07]}  Bxa6 {[%clk 0:00:57]} 45. Kd2 {[%clk 0:00:06]}  Kd7 {[%clk 0:00:56]} 0-1

[Event "January 9 Early 2024"]
[Site "https://www.chess.com"]
[Date "2024.01.11"]
[Round "3"]
[White "Skuhala, Jernej"]
[Black "Pichot, Alan"]
[Result "0-1"]
[Board "133"]
[TimeControl "180+1"]
[WhiteFideId "14605651"]
[BlackFideId "110973"]
[WhiteElo "2547"]
[BlackElo "2824"]
[WhiteTeam "SLO"]
[BlackTeam "ESP"]
[WhiteClock "0:00:14"]
[BlackClock "0:00:35"]

1. e4 {[%clk 0:03:00]}  c5 {[%clk 0:02:58]} 2. Nf3 {[%clk 0:03:01]}  e6 {[%clk 0:02:58]} 3. Nc3 {[%clk 0:03:01]}  Nc6 {[%clk 0:02:58]} 4. d4 {[%clk 0:03:02]}  cxd4 {[%clk 0:02:58]} 5. Nxd4 {[%clk 0:03:02]}  Qc7 {[%clk 0:02:59]} 6. Be3 {[%clk 0:03:02]}  a6 {[%clk 0:02:57]} 7. Qd2 {[%clk 0:03:02]}  Nf6 {[%clk 0:02:57]} 8. f4 {[%clk 0:03:02]}  Bb4 {[%clk 0:02:50]} 9. Bd3 {[%clk 0:03:00]}  b5 {[%clk 0:02:50]} 10. a3 {[%clk 0:02:59]}  Be7 {[%clk 0:02:48]} 11. e5 {[%clk 0:02:57]}  Ng4 {[%clk 0:02:48]} 12. Bg1 {[%clk 0:02:58]}  Bb7 {[%clk 0:02:47]} 13. h3 {[%clk 0:02:43]}  Bh4+ {[%clk 0:02:30]} 14. Kf1 {[%clk 0:02:31]}  Nh6 {[%clk 0:02:17]} 15. Nf3 {[%clk 0:02:30]}  Be7 {[%clk 0:02:16]} 16. Rd1 {[%clk 0:02:29]}  O-O {[%clk 0:02:10]} 17. Be4 {[%clk 0:02:14]}  Rad8 {[%clk 0:02:07]} 18. Be3 {[%clk 0:02:05]}  f5 {[%clk 0:01:51]} 19. Bd3 {[%clk 0:01:55]}  d6 {[%clk 0:01:47]} 20. exd6 {[%clk 0:01:38]}  Bxd6 {[%clk 0:01:47]} 21. Kf2 {[%clk 0:01:32]}  e5 {[%clk 0:01:36]} 22. fxe5 {[%clk 0:01:18]}  Nxe5 {[%clk 0:01:37]} 23. Bxh6 {[%clk 0:00:57]}  gxh6 {[%clk 0:01:23]} 24. Qxh6 {[%clk 0:00:56]}  Bc5+ {[%clk 0:01:17]} 25. Ke2 {[%clk 0:00:47]}  Nxf3 {[%clk 0:01:13]} 26. gxf3 {[%clk 0:00:44]}  Rde8+ {[%clk 0:01:12]} 27. Kd2 {[%clk 0:00:33]}  Be3+ {[%clk 0:01:10]} 28. Qxe3 {[%clk 0:00:33]}  Rxe3 {[%clk 0:01:11]} 29. Kxe3 {[%clk 0:00:34]}  Re8+ {[%clk 0:01:11]} 30. Kf2 {[%clk 0:00:32]}  Qc5+ {[%clk 0:01:09]} 31. Kg2 {[%clk 0:00:32]}  Re3 {[%clk 0:01:04]} 32. Rhf1 {[%clk 0:00:27]}  Qe5 {[%clk 0:01:04]} 33. Bc4+ {[%clk 0:00:15]}  bxc4 {[%clk 0:00:37]} 34. Rd8+ {[%clk 0:00:15]}  Kg7 {[%clk 0:00:38]} 35. Rd7+ {[%clk 0:00:16]}  Kg6 {[%clk 0:00:37]} 36. Rxb7 {[%clk 0:00:16]}  Re1 {[%clk 0:00:38]} 37. Rb6+ {[%clk 0:00:14]}  Kh5 {[%clk 0:00:37]} 38. Rf2 {[%clk 0:00:14]}  Qg7+ {[%clk 0:00:35]} 0-1

[Event "January 9 Early 2024"]
[Site "https://www.chess.com"]
[Date "2024.01.11"]
[Round "3"]
[White "Krutko, Anatoly"]
[Black "Fernandez Siles, Luis"]
[Result "1-0"]
[Board "134"]
[TimeControl "180+1"]
[WhiteFideId "4185862"]
[BlackFideId "2209420"]
[WhiteElo "2558"]
[BlackElo "2291"]
[WhiteTeam "RUS"]
[BlackTeam "ESP"]
[WhiteClock "0:01:32"]
[BlackClock "0:00:04"]

1. Nc3 {[%clk 0:02:58]}  d5 {[%clk 0:02:53]} 2. e4 {[%clk 0:02:58]}  dxe4 {[%clk 0:02:52]} 3. Qe2 {[%clk 0:02:56]}  Nf6 {[%clk 0:02:51]} 4. Nxe4 {[%clk 0:02:55]}  Nxe4 {[%clk 0:02:49]} 5. Qxe4 {[%clk 0:02:55]}  Nc6 {[%clk 0:02:38]} 6. Nf3 {[%clk 0:02:55]}  e6 {[%clk 0:02:29]} 7. d4 {[%clk 0:02:55]}  Be7 {[%clk 0:02:26]} 8. c3 {[%clk 0:02:53]}  Qd5 {[%clk 0:02:24]} 9. Qc2 {[%clk 0:02:48]}  e5 {[%clk 0:02:18]} 10. Be3 {[%clk 0:02:42]}  exd4 {[%clk 0:02:15]} 11. Nxd4 {[%clk 0:02:41]}  O-O {[%clk 0:02:07]} 12. Bd3 {[%clk 0:02:38]}  g6 {[%clk 0:02:04]} 13. O-O {[%clk 0:02:37]}  Bf6 {[%clk 0:02:02]} 14. Be4 {[%clk 0:02:35]}  Nxd4 {[%clk 0:01:52]} 15. Bxd4 {[%clk 0:02:30]}  Qd6 {[%clk 0:01:43]} 16. Rad1 {[%clk 0:02:28]}  Bxd4 {[%clk 0:01:43]} 17. Rxd4 {[%clk 0:02:29]}  Qf6 {[%clk 0:01:43]} 18. Rfd1 {[%clk 0:02:26]}  c6 {[%clk 0:01:28]} 19. Bf3 {[%clk 0:02:21]}  Bf5 {[%clk 0:01:27]} 20. Qb3 {[%clk 0:02:21]}  Qe7 {[%clk 0:01:17]} 21. h3 {[%clk 0:02:18]}  Be6 {[%clk 0:01:14]} 22. Qa4 {[%clk 0:02:18]}  a6 {[%clk 0:01:14]} 23. a3 {[%clk 0:02:17]}  Rad8 {[%clk 0:01:13]} 24. Qa5 {[%clk 0:02:11]}  Rxd4 {[%clk 0:01:09]} 25. Rxd4 {[%clk 0:02:12]}  Re8 {[%clk 0:01:02]} 26. Qb6 {[%clk 0:02:09]}  h5 {[%clk 0:00:54]} 27. h4 {[%clk 0:02:09]}  Kg7 {[%clk 0:00:40]} 28. g3 {[%clk 0:02:09]}  Bf5 {[%clk 0:00:32]} 29. Rd1 {[%clk 0:01:55]}  Bg4 {[%clk 0:00:29]} 30. Bxg4 {[%clk 0:01:52]}  hxg4 {[%clk 0:00:30]} 31. Qd4+ {[%clk 0:01:53]}  Qe5 {[%clk 0:00:25]} 32. Qxg4 {[%clk 0:01:54]}  Qe2 {[%clk 0:00:22]} 33. Qd4+ {[%clk 0:01:53]}  Kg8 {[%clk 0:00:22]} 34. Rd2 {[%clk 0:01:54]}  Qe1+ {[%clk 0:00:21]} 35. Kg2 {[%clk 0:01:55]}  Qb1 {[%clk 0:00:21]} 36. Qd3 {[%clk 0:01:53]}  Qc1 {[%clk 0:00:20]} 37. Qc2 {[%clk 0:01:52]}  Qe1 {[%clk 0:00:18]} 38. Rd1 {[%clk 0:01:51]}  Qe4+ {[%clk 0:00:18]} 39. Qxe4 {[%clk 0:01:51]}  Rxe4 {[%clk 0:00:19]} 40. Rd7 {[%clk 0:01:51]}  b5 {[%clk 0:00:17]} 41. Ra7 {[%clk 0:01:51]}  Ra4 {[%clk 0:00:16]} 42. Kf3 {[%clk 0:01:46]}  Kg7 {[%clk 0:00:16]} 43. Ke3 {[%clk 0:01:46]}  Kf6 {[%clk 0:00:16]} 44. Kd3 {[%clk 0:01:47]}  Ke6 {[%clk 0:00:16]} 45. Kc2 {[%clk 0:01:47]}  f5 {[%clk 0:00:14]} 46. Kb3 {[%clk 0:01:45]}  f4 {[%clk 0:00:14]} 47. Ka2 {[%clk 0:01:44]}  fxg3 {[%clk 0:00:13]} 48. fxg3 {[%clk 0:01:45]}  Rg4 {[%clk 0:00:12]} 49. Rxa6 {[%clk 0:01:45]}  Kd5 {[%clk 0:00:13]} 50. a4 {[%clk 0:01:40]}  bxa4 {[%clk 0:00:10]} 51. Ka3 {[%clk 0:01:41]}  Rxg3 {[%clk 0:00:08]} 52. Rxa4 {[%clk 0:01:41]}  c5 {[%clk 0:00:06]} 53. Rf4 {[%clk 0:01:39]}  Ke5 {[%clk 0:00:05]} 54. Ra4 {[%clk 0:01:37]}  Kd5 {[%clk 0:00:05]} 55. Ra6 {[%clk 0:01:36]}  Rg4 {[%clk 0:00:04]} 56. Kb3 {[%clk 0:01:33]}  Rxh4 {[%clk 0:00:04]} 57. Rxg6 {[%clk 0:01:33]}  Rh8 {[%clk 0:00:04]} 58. Rg5+ {[%clk 0:01:32]}  Kc6 {[%clk 0:00:04]} 59. Rg6+ {[%clk 0:01:32]} 1-0

[Event "January 9 Early 2024"]
[Site "https://www.chess.com"]
[Date "2024.01.11"]
[Round "3"]
[White "Rosen, Eric"]
[Black "Manukian, Artak"]
[Result "0-1"]
[Board "135"]
[TimeControl "180+1"]
[WhiteFideId "2032562"]
[BlackFideId "13301373"]
[WhiteElo "2665"]
[BlackElo "2492"]
[WhiteTeam "USA"]
[BlackTeam "ARM"]
[WhiteClock "0:00:01"]
[BlackClock "0:00:25"]

1. e4 {[%clk 0:03:00]}  c6 {[%clk 0:02:55]} 2. Nf3 {[%clk 0:02:53]}  d5 {[%clk 0:02:55]} 3. Nc3 {[%clk 0:02:53]}  dxe4 {[%clk 0:02:56]} 4. Nxe4 {[%clk 0:02:54]}  Nf6 {[%clk 0:02:56]} 5. Neg5 {[%clk 0:02:54]}  h6 {[%clk 0:02:54]} 6. Nxf7 {[%clk 0:02:55]}  Kxf7 {[%clk 0:02:50]} 7. Bc4+ {[%clk 0:02:55]}  e6 {[%clk 0:02:49]} 8. d4 {[%clk 0:02:52]}  Bd6 {[%clk 0:02:34]} 9. O-O {[%clk 0:02:51]}  Re8 {[%clk 0:02:31]} 10. Re1 {[%clk 0:02:47]}  Kg8 {[%clk 0:02:27]} 11. Qd3 {[%clk 0:02:42]}  Na6 {[%clk 0:02:09]} 12. Qg6 {[%clk 0:02:11]}  Re7 {[%clk 0:02:03]} 13. Ne5 {[%clk 0:01:25]}  Qe8 {[%clk 0:01:55]} 14. Qg3 {[%clk 0:01:23]}  Nb4 {[%clk 0:01:51]} 15. Bb3 {[%clk 0:01:15]}  c5 {[%clk 0:01:45]} 16. dxc5 {[%clk 0:01:03]}  Bxe5 {[%clk 0:01:37]} 17. Rxe5 {[%clk 0:00:58]}  Nc6 {[%clk 0:01:35]} 18. Re1 {[%clk 0:00:49]}  Kh8 {[%clk 0:01:25]} 19. c3 {[%clk 0:00:36]}  e5 {[%clk 0:01:22]} 20. Bc2 {[%clk 0:00:37]}  e4 {[%clk 0:01:18]} 21. Be3 {[%clk 0:00:32]}  Bf5 {[%clk 0:01:15]} 22. b4 {[%clk 0:00:30]}  Ne5 {[%clk 0:01:11]} 23. Bd4 {[%clk 0:00:28]}  Nd3 {[%clk 0:01:07]} 24. Rf1 {[%clk 0:00:25]}  Nh5 {[%clk 0:00:58]} 25. Qe3 {[%clk 0:00:19]}  Re6 {[%clk 0:00:48]} 26. Kh1 {[%clk 0:00:16]}  Nhf4 {[%clk 0:00:42]} 27. f3 {[%clk 0:00:09]}  exf3 {[%clk 0:00:34]} 28. Qxf3 {[%clk 0:00:10]}  Be4 {[%clk 0:00:31]} 29. Qg3 {[%clk 0:00:02]}  Bxg2+ {[%clk 0:00:25]} 30. Kg1 {[%clk 0:00:01]}  Ne2+ {[%clk 0:00:25]} 31. Kxg2 {[%clk 0:00:01]}  Nxg3 {[%clk 0:00:25]} 0-1

[Event "January 9 Early 2024"]
[Site "https://www.chess.com"]
[Date "2024.01.11"]
[Round "3"]
[White "Ovezdurdyyeva, Jemal"]
[Black "Crocker, Philip J"]
[Result "1-0"]
[Board "139"]
[TimeControl "180+1"]
[WhiteFideId "14001888"]
[BlackFideId "403180"]
[WhiteElo "2447"]
[BlackElo "2121"]
[WhiteTeam "TKM"]
[BlackTeam "ENG"]
[WhiteClock "0:00:45"]
[BlackClock "0:00:03"]

1. e4 {[%clk 0:02:57]}  Nf6 {[%clk 0:02:59]} 2. e5 {[%clk 0:02:56]}  Nd5 {[%clk 0:02:59]} 3. c4 {[%clk 0:02:56]}  Nb6 {[%clk 0:02:59]} 4. d4 {[%clk 0:02:54]}  d6 {[%clk 0:02:59]} 5. exd6 {[%clk 0:02:55]}  cxd6 {[%clk 0:02:58]} 6. Nf3 {[%clk 0:02:54]}  g6 {[%clk 0:02:58]} 7. Be2 {[%clk 0:02:53]}  Bg7 {[%clk 0:02:58]} 8. O-O {[%clk 0:02:53]}  O-O {[%clk 0:02:58]} 9. Be3 {[%clk 0:02:51]}  Bg4 {[%clk 0:02:58]} 10. Nbd2 {[%clk 0:02:50]}  Nc6 {[%clk 0:02:56]} 11. h3 {[%clk 0:02:40]}  Bxf3 {[%clk 0:02:54]} 12. Nxf3 {[%clk 0:02:40]}  d5 {[%clk 0:02:54]} 13. c5 {[%clk 0:02:38]}  Nc4 {[%clk 0:02:54]} 14. Bc1 {[%clk 0:02:32]}  e5 {[%clk 0:02:51]} 15. b3 {[%clk 0:02:31]}  e4 {[%clk 0:02:39]} 16. bxc4 {[%clk 0:02:12]}  exf3 {[%clk 0:02:39]} 17. Bxf3 {[%clk 0:02:12]}  Nxd4 {[%clk 0:02:34]} 18. Rb1 {[%clk 0:02:06]}  dxc4 {[%clk 0:02:25]} 19. Bxb7 {[%clk 0:02:05]}  Rb8 {[%clk 0:02:19]} 20. Bf4 {[%clk 0:02:05]}  Rxb7 {[%clk 0:01:41]} 21. Rxb7 {[%clk 0:02:06]}  Qa5 {[%clk 0:01:41]} 22. Bd6 {[%clk 0:02:00]}  Rc8 {[%clk 0:01:27]} 23. Qg4 {[%clk 0:01:44]}  Qd8 {[%clk 0:01:17]} 24. Rd1 {[%clk 0:01:35]}  f5 {[%clk 0:01:13]} 25. Qxd4 {[%clk 0:01:05]}  Bxd4 {[%clk 0:01:10]} 26. Rxd4 {[%clk 0:01:05]}  Qe8 {[%clk 0:01:01]} 27. Rb1 {[%clk 0:00:58]}  c3 {[%clk 0:01:00]} 28. Rc4 {[%clk 0:00:55]}  Qe2 {[%clk 0:00:41]} 29. Rxc3 {[%clk 0:00:53]}  Qxa2 {[%clk 0:00:41]} 30. Rcb3 {[%clk 0:00:50]}  Qc2 {[%clk 0:00:31]} 31. R3b2 {[%clk 0:00:49]}  Qc4 {[%clk 0:00:30]} 32. Rb7 {[%clk 0:00:47]}  a5 {[%clk 0:00:22]} 33. Re1 {[%clk 0:00:47]}  Qa6 {[%clk 0:00:06]} 34. Ree7 {[%clk 0:00:45]}  Qc6 {[%clk 0:00:05]} 35. Rg7+ {[%clk 0:00:44]}  Kh8 {[%clk 0:00:04]} 36. Rxh7+ {[%clk 0:00:45]}  Kg8 {[%clk 0:00:03]} 37. Rbg7# {[%clk 0:00:45]} 1-0

[Event "January 9 Early 2024"]
[Site "https://www.chess.com"]
[Date "2024.01.11"]
[Round "3"]
[White "Kvaloy, Aksel Bu"]
[Black "Pranesh M"]
[Result "1-0"]
[Board "143"]
[TimeControl "180+1"]
[WhiteFideId "1528815"]
[BlackFideId "35028600"]
[WhiteElo "2733"]
[BlackElo "2940"]
[WhiteTeam "NOR"]
[BlackTeam "IND"]
[WhiteClock "0:00:44"]
[BlackClock "0:00:02"]

1. d4 {[%clk 0:03:00]}  Nf6 {[%clk 0:02:57]} 2. Nf3 {[%clk 0:03:00]}  b6 {[%clk 0:02:56]} 3. Bg5 {[%clk 0:03:01]}  Bb7 {[%clk 0:02:56]} 4. Nbd2 {[%clk 0:03:01]}  c5 {[%clk 0:02:50]} 5. e3 {[%clk 0:03:00]}  e6 {[%clk 0:02:50]} 6. Bd3 {[%clk 0:02:58]}  Be7 {[%clk 0:02:48]} 7. c3 {[%clk 0:02:58]}  h6 {[%clk 0:02:47]} 8. Bxf6 {[%clk 0:02:44]}  Bxf6 {[%clk 0:02:48]} 9. Qe2 {[%clk 0:02:44]}  Nc6 {[%clk 0:02:44]} 10. a3 {[%clk 0:02:37]}  O-O {[%clk 0:02:43]} 11. h4 {[%clk 0:02:32]}  g6 {[%clk 0:02:37]} 12. g4 {[%clk 0:02:24]}  Bg7 {[%clk 0:02:37]} 13. g5 {[%clk 0:02:14]}  h5 {[%clk 0:02:35]} 14. Ne4 {[%clk 0:02:14]}  d5 {[%clk 0:02:34]} 15. Ng3 {[%clk 0:02:12]}  Re8 {[%clk 0:02:30]} 16. O-O-O {[%clk 0:02:04]}  c4 {[%clk 0:02:23]} 17. Bc2 {[%clk 0:02:00]}  b5 {[%clk 0:02:23]} 18. Nh2 {[%clk 0:01:59]}  a5 {[%clk 0:02:18]} 19. Nxh5 {[%clk 0:01:58]}  gxh5 {[%clk 0:02:18]} 20. Qxh5 {[%clk 0:01:58]}  b4 {[%clk 0:02:17]} 21. Ng4 {[%clk 0:01:57]}  Kf8 {[%clk 0:02:03]} 22. f4 {[%clk 0:01:56]}  Ke7 {[%clk 0:01:36]} 23. Qh7 {[%clk 0:01:44]}  Rg8 {[%clk 0:01:31]} 24. h5 {[%clk 0:01:44]}  Qf8 {[%clk 0:00:59]} 25. h6 {[%clk 0:01:43]}  Bh8 {[%clk 0:01:00]} 26. g6 {[%clk 0:01:33]}  Kd6 {[%clk 0:01:00]} 27. Ne5 {[%clk 0:01:27]}  Nd8 {[%clk 0:00:21]} 28. Rdg1 {[%clk 0:01:13]}  bxc3 {[%clk 0:00:21]} 29. bxc3 {[%clk 0:01:12]}  Bc6 {[%clk 0:00:16]} 30. g7 {[%clk 0:01:09]}  Qe8 {[%clk 0:00:16]} 31. gxh8=Q {[%clk 0:00:54]}  Rxh8 {[%clk 0:00:17]} 32. Qg7 {[%clk 0:00:55]}  Rb8 {[%clk 0:00:17]} 33. h7 {[%clk 0:00:54]}  Ke7 {[%clk 0:00:06]} 34. Qxh8 {[%clk 0:00:46]}  Qxh8 {[%clk 0:00:06]} 35. Rg8 {[%clk 0:00:46]}  Nb7 {[%clk 0:00:02]} 36. Nxc6+ {[%clk 0:00:45]}  Kd6 {[%clk 0:00:02]} 37. Nxb8 {[%clk 0:00:44]} 1-0

[Event "January 9 Early 2024"]
[Site "https://www.chess.com"]
[Date "2024.01.11"]
[Round "3"]
[White "Carre, Sylvain"]
[Black "Panda Sambit"]
[Result "1/2-1/2"]
[Board "149"]
[TimeControl "180+1"]
[WhiteFideId "642118"]
[BlackFideId "25091794"]
[WhiteElo "2373"]
[BlackElo "2577"]
[WhiteTeam "FRA"]
[BlackTeam "IND"]
[WhiteClock "0:00:06"]
[BlackClock "0:00:14"]

1. d4 {[%clk 0:03:00]}  e6 {[%clk 0:02:57]} 2. Bf4 {[%clk 0:03:01]}  c5 {[%clk 0:02:57]} 3. e3 {[%clk 0:03:01]}  Nc6 {[%clk 0:02:57]} 4. c3 {[%clk 0:03:02]}  d5 {[%clk 0:02:57]} 5. Nd2 {[%clk 0:03:02]}  Nf6 {[%clk 0:02:53]} 6. Ngf3 {[%clk 0:03:02]}  cxd4 {[%clk 0:02:53]} 7. exd4 {[%clk 0:02:55]}  Nh5 {[%clk 0:02:51]} 8. Bg3 {[%clk 0:02:55]}  g6 {[%clk 0:02:50]} 9. Bb5 {[%clk 0:02:45]}  Nxg3 {[%clk 0:02:42]} 10. hxg3 {[%clk 0:02:44]}  Bd7 {[%clk 0:02:42]} 11. Qe2 {[%clk 0:02:38]}  f6 {[%clk 0:02:39]} 12. g4 {[%clk 0:02:20]}  Bd6 {[%clk 0:02:27]} 13. Qe3 {[%clk 0:02:13]}  g5 {[%clk 0:02:16]} 14. Rh6 {[%clk 0:01:49]}  Qa5 {[%clk 0:01:50]} 15. Bxc6 {[%clk 0:01:44]}  bxc6 {[%clk 0:01:50]} 16. Rxf6 {[%clk 0:01:44]}  Bf4 {[%clk 0:01:47]} 17. Rxe6+ {[%clk 0:01:36]}  Bxe6 {[%clk 0:01:45]} 18. Qxe6+ {[%clk 0:01:37]}  Kf8 {[%clk 0:01:45]} 19. Qf6+ {[%clk 0:01:23]}  Kg8 {[%clk 0:01:45]} 20. Nxg5 {[%clk 0:01:13]}  Re8+ {[%clk 0:01:29]} 21. Kd1 {[%clk 0:01:02]}  Qc7 {[%clk 0:01:27]} 22. Ne6 {[%clk 0:00:47]}  Qd7 {[%clk 0:00:59]} 23. Nxf4 {[%clk 0:00:37]}  Qxg4+ {[%clk 0:00:58]} 24. Nf3 {[%clk 0:00:34]}  Re4 {[%clk 0:00:48]} 25. Qd8+ {[%clk 0:00:20]}  Kg7 {[%clk 0:00:44]} 26. Qc7+ {[%clk 0:00:20]}  Kg8 {[%clk 0:00:36]} 27. Qd8+ {[%clk 0:00:15]}  Kg7 {[%clk 0:00:36]} 28. Qc7+ {[%clk 0:00:16]}  Kg8 {[%clk 0:00:14]} 29. Qd8+ {[%clk 0:00:06]} 1/2-1/2

[Event "January 9 Early 2024"]
[Site "https://www.chess.com"]
[Date "2024.01.11"]
[Round "3"]
[White "De Souza, Cristiano Gomes"]
[Black "Salman, Ilhan Serhat"]
[Result "1/2-1/2"]
[Board "150"]
[TimeControl "180+1"]
[WhiteFideId "2151758"]
[BlackFideId "6361579"]
[WhiteElo "2248"]
[BlackElo "2497"]
[WhiteTeam "BRA"]
[BlackTeam "TUR"]
[WhiteClock "0:00:44"]
[BlackClock "0:00:21"]

1. d4 {[%clk 0:03:00]}  g6 {[%clk 0:02:55]} 2. c4 {[%clk 0:02:54]}  b6 {[%clk 0:02:54]} 3. Nf3 {[%clk 0:02:53]}  Bb7 {[%clk 0:02:53]} 4. g3 {[%clk 0:02:53]}  Bg7 {[%clk 0:02:53]} 5. Bg2 {[%clk 0:02:52]}  Nf6 {[%clk 0:02:53]} 6. O-O {[%clk 0:02:52]}  O-O {[%clk 0:02:54]} 7. Nc3 {[%clk 0:02:52]}  d5 {[%clk 0:02:51]} 8. Ne5 {[%clk 0:02:46]}  c6 {[%clk 0:02:49]} 9. b3 {[%clk 0:02:41]}  Nbd7 {[%clk 0:02:46]} 10. Nxd7 {[%clk 0:02:39]}  Qxd7 {[%clk 0:02:46]} 11. cxd5 {[%clk 0:02:37]}  Nxd5 {[%clk 0:02:42]} 12. Nxd5 {[%clk 0:02:34]}  cxd5 {[%clk 0:02:43]} 13. Ba3 {[%clk 0:02:32]}  Rfc8 {[%clk 0:02:41]} 14. Qd2 {[%clk 0:02:32]}  Rc7 {[%clk 0:02:38]} 15. Rfc1 {[%clk 0:02:31]}  Rac8 {[%clk 0:02:39]} 16. Rxc7 {[%clk 0:02:29]}  Rxc7 {[%clk 0:02:39]} 17. e3 {[%clk 0:02:29]}  e6 {[%clk 0:02:29]} 18. Rc1 {[%clk 0:02:27]}  Qc8 {[%clk 0:02:29]} 19. Bf1 {[%clk 0:02:26]}  Bf8 {[%clk 0:02:26]} 20. Rxc7 {[%clk 0:02:21]}  Qxc7 {[%clk 0:02:26]} 21. Qc1 {[%clk 0:02:20]}  Qxc1 {[%clk 0:02:23]} 22. Bxc1 {[%clk 0:02:20]}  Bb4 {[%clk 0:02:21]} 23. Bd3 {[%clk 0:02:18]}  Kf8 {[%clk 0:02:21]} 24. Kf1 {[%clk 0:02:19]}  Ke7 {[%clk 0:02:21]} 25. Ke2 {[%clk 0:02:18]}  h5 {[%clk 0:02:21]} 26. Bd2 {[%clk 0:02:18]}  Bd6 {[%clk 0:02:19]} 27. f4 {[%clk 0:02:16]}  a5 {[%clk 0:02:16]} 28. Bb5 {[%clk 0:02:14]}  Bc8 {[%clk 0:02:10]} 29. Kd3 {[%clk 0:02:13]}  Bd7 {[%clk 0:02:11]} 30. Bxd7 {[%clk 0:02:11]}  Kxd7 {[%clk 0:02:11]} 31. e4 {[%clk 0:02:07]}  Kc6 {[%clk 0:02:10]} 32. e5 {[%clk 0:02:06]}  Be7 {[%clk 0:02:10]} 33. h3 {[%clk 0:02:05]}  Kb5 {[%clk 0:02:08]} 34. g4 {[%clk 0:02:02]}  hxg4 {[%clk 0:02:06]} 35. hxg4 {[%clk 0:02:02]}  a4 {[%clk 0:02:06]} 36. Bc3 {[%clk 0:01:52]}  Bh4 {[%clk 0:02:00]} 37. Ke3 {[%clk 0:01:45]}  Be7 {[%clk 0:01:52]} 38. Kd3 {[%clk 0:01:39]}  Ba3 {[%clk 0:01:51]} 39. Ke3 {[%clk 0:01:35]}  Bc1+ {[%clk 0:01:50]} 40. Kf3 {[%clk 0:01:35]}  a3 {[%clk 0:01:41]} 41. Be1 {[%clk 0:01:24]}  Bb2 {[%clk 0:01:13]} 42. Ke3 {[%clk 0:01:23]}  Bc1+ {[%clk 0:01:05]} 43. Bd2 {[%clk 0:01:09]}  Bb2 {[%clk 0:01:02]} 44. Kd3 {[%clk 0:01:08]}  Kc6 {[%clk 0:01:01]} 45. Be1 {[%clk 0:00:58]}  Kb5 {[%clk 0:00:38]} 46. Bc3 {[%clk 0:00:51]}  Bc1 {[%clk 0:00:37]} 47. Bd2 {[%clk 0:00:49]}  Bb2 {[%clk 0:00:24]} 48. Bc3 {[%clk 0:00:44]}  Bc1 {[%clk 0:00:21]} 49. Bd2 {[%clk 0:00:44]}  Bb2 {[%clk 0:00:21]} 50. Bc3 {[%clk 0:00:44]} 1/2-1/2